Cogmind - Beta 14 @@@ ROGUE MODE // 2024.08.07 @ 17:15:49 Player: Ronin_tempest Result: Destroyed by P4-KG0(R) with Subdweller Beam Cannon Performance ------------- Evolutions (0) 0 Regions Visited (2) 400 Robots Destroyed (17) 85 Value Destroyed (444) 444 Prototype IDs (2) 40 Alien Tech Used (0) 0 Bonus (0) 0 TOTAL SCORE: 969 Bonus ------- None Cogmind --------- Core Integrity 0/250 Matter 290/300 Energy 265/265 System Corruption 0% Temperature Cool (9) Movement Treading (240) Ox1 Location -10/Subcaves Parts ------- > --- POWER (1) -------- Improved Ion Engine > --- PROPULSION (2) --- Light Treads Light Treads > --- UTILITY (2) ------ Large Storage Unit Medium Armor Plating > --- WEAPON (2) ------- Subdweller Beam Cannon Rocket Launcher > --- INVENTORY (15) --- Light Nuclear Core Subdweller Monowheel Medium Storage Unit Signal Interpreter Light Armor Plating Medium Laser Beam Cannon Beam Cannon Subdweller Beam Cannon Shotgun Rocket Launcher Datajack Shrapnel Trap Peak State ------------ > --- POWER ------------ Improved Ion Engine > --- PROPULSION ------- Aluminum Leg Aluminum Leg > --- UTILITY ---------- Large Storage Unit Medium Armor Plating > --- WEAPON ----------- Subdweller Laser Rocket Launcher > --- INVENTORY -------- Light Nuclear Core Light Treads Light Treads Medium Storage Unit Signal Interpreter Light Armor Plating Medium Armor Plating Medium Armor Plating Medium Laser Beam Cannon Beam Cannon Assault Rifle Shotgun Rocket Launcher Datajack [Rating: 13] Favorites ----------- Power Improved Ion Engine Engine Improved Ion Engine Power Core Light Nuclear Core Propulsion Aluminum Leg Treads Light Treads Leg Aluminum Leg Utility Medium Armor Plating Storage Large Storage Unit Protection Medium Armor Plating Weapon Medium Laser Energy Gun Medium Laser Energy Cannon Beam Cannon Ballistic Gun Assault Rifle Launcher Rocket Launcher Build | -11 -10 -10 ------- Run | Yrd Mat Sub Slots Evolved . | . . . Power . | . . . Propulsion . | . . . Utility . | . . . Weapon . | . . . Parts Attached 25 | . 13 12 Power 3 | . 3 . Engine 1 | . 1 . Core 2 | . 2 . Reactor . | . . . Propulsion 3 | . 1 2 Treads 2 | . . 2 Leg 1 | . 1 . Wheel . | . . . Hover . | . . . Flight . | . . . Utility 7 | . 5 2 Device . | . . . Storage 2 | . 2 . Processor . | . . . Hackware . | . . . Protection 5 | . 3 2 Artifact . | . . . Weapon 12 | . 4 8 Energy Gun 3 | . 1 2 Energy Cannon 2 | . . 2 Ballistic Gun 4 | . 2 2 Ballistic Cannon . | . . . Launcher 3 | . 1 2 Special Weapon . | . . . Impact Weapon . | . . . Slashing Weapon . | . . . Piercing Weapon . | . . . Special Melee Weapon . | . . . Unidentified Prototypes . | . . . Parts Lost 5 | . . 5 Power . | . . . Propulsion 2 | . . 2 Utility 2 | . . 2 Weapon 1 | . . 1 Highest Loss Streak 5 | . . 5 To Critical Strikes . | . . . Average Slot Usage (%) 97 | . 96 99 Engine 11 | . 9 14 Core 2 | . 4 . Treads 6 | . . 12 Leg 21 | . 28 15 Storage 14 | . 14 14 Protection 12 | . 10 13 Energy Gun 12 | . 16 7 Energy Cannon 3 | . . 6 Ballistic Gun 6 | . 11 1 Launcher 6 | . . 12 Peak Build Rating 13 | . 11 13 Average Rating 10 | . 9 12 On Entrance 7 | 6 6 11 Naked Turns . | . . . Heaviest Build 46 | 13 38 46 Greatest Support 40 | 20 20 40 Greatest Overweight (x) 2 | . 1 2 Average Overweight (x) . | . . 1 Largest Inventory Capacity 15 | . 15 15 Average Capacity 12 | . 10 15 Most Carried 15 | . 15 15 Average Carried 11 | . 9 13 Final Capacity 15 | 8 15 15 Final Carried 14 | 6 14 13 Class Distribution -------------------- 100% | Mutant Dominant Class ---------------- Mutant | -10/Materials Mutant | -10/Subcaves Resources | -11 -10 -10 ----------- Run | Yrd Mat Sub Matter Collected 590 | 200 147 243 Remotely . | . . . Salvage Created 549 | . 360 189 Parts 37 | . 26 11 Haulers Intercepted 2 | . 2 . Recyclers Shooed . | . . . Parts Field Recycled . | . . . Retrieved Matter . | . . . Parts Self-Destructed 10 | . . 10 Prevented . | . . . Kills | -11 -10 -10 ------- Run | Yrd Mat Sub Combat Hostiles Destroyed 12 | . 7 5 Guns 8 | . 7 1 Cannons 2 | . . 2 AOE 2 | . . 2 Classes Destroyed 5 | . 4 1 Hauler 2 | . 2 . Watcher 3 | . 3 . Swarmer 3 | . 3 . Grunt 4 | . 4 . Subdweller 5 | . . 5 Best Kill Streak 3 | . 3 2 Combat Bots Only 3 | . 3 2 Max Kills in Single Turn 1 | . 1 1 Gunslinging . | . . . Exploded 1 | . . 1 Melee . | . . . Uniques/NPCs Destroyed . | . . . Combat | -11 -10 -10 -------- Run | Yrd Mat Sub Hostile Shots Fired 78 | . 28 50 Missed 21 | . 4 17 Damage Taken 1200 | . 308 892 Core 260 | . 60 200 Absorbed by Shields . | . . . Core Remaining (%) 100 | 100 . . Volleys Fired 77 | . 37 40 Largest 2 | . 2 2 Hottest 93 | . 90 93 Shots Fired 128 | . 71 57 Gun 111 | . 70 41 Cannon 10 | . . 10 Launcher 7 | . 1 6 Special . | . . . Kinetic 30 | . 17 13 Thermal 91 | . 53 38 Explosive 7 | . 1 6 Electromagnetic . | . . . Robot Hit Streak 9 | . 8 9 Robot Miss Streak 3 | . 3 2 Penetration Max . | . . . Secondary Targets 1 | . 1 . Max Gunslinging Chain 1 | . 1 . Shots Hit Robots 71 | . 45 26 Core Hits 31 | . 20 11 Critical Kills . | . . . Critical Parts Destroyed . | . . . Critical Strikes . | . . . Melee Attacks . | . . . Impact . | . . . Slashing . | . . . Piercing . | . . . Sneak Attacks . | . . . Combat Hostiles . | . . . Follow-up Attacks . | . . . Damage Inflicted 1125 | . 548 577 Guns 870 | . 548 322 Cannons 71 | . . 71 Explosions 184 | . . 184 Melee . | . . . Ramming . | . . . Kinetic 273 | . 129 144 Thermal 668 | . 419 249 Explosive 184 | . . 184 Electromagnetic . | . . . Impact . | . . . Slashing . | . . . Piercing . | . . . Highest Corruption . | . . . Average Corruption . | . . . Corruption Purged . | . . . Corruption Blocked . | . . . Overload Shots . | . . . Overflow Damage . | . . . Projectiles . | . . . Explosions . | . . . Melee . | . . . Knockbacks . | . . . Impact . | . . . Kinetic . | . . . Secondary . | . . . Self-Inflicted Damage 29 | . . 29 Shots 1 | . . 1 Rammed . | . . . Targets Rammed . | . . . Kicked . | . . . Crushed . | . . . Highest Temperature 282 | . 282 272 Average Temperature 69 | . 67 78 Received Heat Transfer 662 | . 144 518 Effects 2 | . 1 1 Energy Bleed 1 | . 1 . Interference 1 | . . 1 Siege Activations . | . . . Robots Corrupted . | . . . Combat Hostiles . | . . . Parts Fried . | . . . Impact Corruptions . | . . . Robots Melted . | . . . Combat Hostiles . | . . . Parts Melted 4 | . 2 2 Heat Transferred 1670 | . 1175 495 Parts Sabotaged . | . . . Parts Stolen . | . . . Parts Stripped . | . . . Power Chain Reactions . | . . . Alert | -11 -10 -10 ------- Run | Yrd Mat Sub Peak Influence 162 | . 162 . Initial . | . . . Average 39 | . 39 . Maximum Alert Level . | . . . Low Security (%) 100 | . 100 . Level 1 . | . . . Level 2 . | . . . Level 3 . | . . . Level 4 . | . . . Level 5 . | . . . High Security . | . . . Max Security . | . . . Squads Dispatched . | . . . Investigation . | . . . Extermination . | . . . Reinforcement . | . . . Assault . | . . . Garrison . | . . . Intercept . | . . . Searches Triggered . | . . . Construction Impeded . | . . . Haulers Reinforced . | . . . Active Scanning Responses . | . . . Cargo Convoy Interrupts . | . . . Stealth | -11 -10 -10 --------- Run | Yrd Mat Sub Distress Signals . | . . . Communications Jammed . | . . . Distress Signals . | . . . Times Spotted 24 | . 15 9 Peak Tracking Total 3 | . 3 2 Tactical Retreats 1 | . 1 . Traps | -11 -10 -10 ------- Run | Yrd Mat Sub Traps Triggered 2 | . 2 . Indirectly . | . . . Trap Hack Attempts . | . . . Triggered . | . . . Disarmed . | . . . Reprogrammed . | . . . Reused . | . . . Traps Extracted . | . . . Installed . | . . . Triggered 2 | . . 2 Most Traps Carried 1 | . . 1 Machines | -11 -10 -10 ---------- Run | Yrd Mat Sub Machines Disabled . | . . . Max in Single Turn . | . . . Machines Repaired . | . . . Machines Dismantled . | . . . Machines Sabotaged . | . . . Overloaded Fab Kills . | . . . Hacking | -11 -10 -10 --------- Run | Yrd Mat Sub Machines Accessed 8 | . 8 . Terminals 8 | . 8 . Fabricators . | . . . Repair Stations . | . . . Recycling Units . | . . . Scanalyzers . | . . . Garrison Access . | . . . Total Hacks 24 | . 24 . Successful 17 | . 17 . Failed 7 | . 7 . Catastrophic . | . . . Database Lockouts . | . . . Manual 18 | . 18 . Terminals 24 | . 24 . Fabricators . | . . . Repair Stations . | . . . Recycling Units . | . . . Scanalyzers . | . . . Garrison Access . | . . . Terminal Hacks 10 | . 10 . Robot Analysis 2 | . 2 . Prototype ID Bank 1 | . 1 . Locate Traps 4 | . 4 . Registered Components 1 | . 1 . Zone Layout 2 | . 2 . Fabricator Hacks . | . . . Repair Station Hacks . | . . . Recycling Unit Hacks . | . . . Scanalyzer . | . . . Garrison Access Hacks . | . . . Unauthorized Hacks 7 | . 7 . Terminals 7 | . 7 . Track 2 | . 2 . Botnet 4 | . 4 . Operators 1 | . 1 . Fabricators . | . . . Repair Stations . | . . . Recycling Units . | . . . Scanalyzers . | . . . Garrison Access . | . . . Data Cores Recovered . | . . . Used . | . . . Hacking Detections 7 | . 7 . Full Trace Events . | . . . Feedback Events . | . . . Feedback Blocked . | . . . Robot Schematics Acquired . | . . . Robots Built . | . . . Authchips . | . . . Time . | . . . Total Robot Build Rating . | . . . Part Schematics Acquired . | . . . Parts Built . | . . . Authchips . | . . . Time . | . . . Total Part Build Rating . | . . . Parts Repaired . | . . . Time . | . . . Parts Recycled . | . . . Recycled Matter . | . . . Retrieved Matter . | . . . Retrieved Components . | . . . Parts Scanalyzed . | . . . Part Schematics Acquired . | . . . Parts Damaged . | . . . Bothacking | -11 -10 -10 ------------ Run | Yrd Mat Sub Used RIF Installer . | . . . Robots Hacked . | . . . Non-combat . | . . . Combat . | . . . Robot Hacks Applied . | . . . Relay Couplers Released . | . . . Fabnet Peak Effective % . | . . . Robots Rewired . | . . . Allies Hacked . | . . . Hacks Repelled . | . . . Allies | -11 -10 -10 -------- Run | Yrd Mat Sub Total Allies . | . . . Largest Group . | . . . Highest-Rated Group . | . . . Highest-Rated Ally . | . . . Total Orders . | . . . Ally Attacks . | . . . Total Damage . | . . . Kills . | . . . Allies Corrupted . | . . . Allies Melted . | . . . Intel | -11 -10 -10 ------- Run | Yrd Mat Sub Robot Analysis Total 2 | . 2 . Derelict Logs Recovered . | . . . Drone Launches . | . . . Drone Recoveries . | . . . Exploration | -11 -10 -10 ------------- Run | Yrd Mat Sub Turns Passed 2902 | . 1499 1403 Spaces Moved 1294 | 1 761 532 Core . | . . . Treads 262 | . . 262 Legs 1032 | 1 761 270 Wheels . | . . . Hover . | . . . Flight . | . . . Fastest Speed 120 | 120 120 160 Average Speed 198 | 120 170 239 Slowest Speed 260 | 120 190 260 Overloaded Moves . | . . . Propulsion Burnouts . | . . . Robots Hopped . | . . . Cave-ins Triggered . | . . . Exploration Rate (%) 43 | 2 95 33 Regions Visited 2 Branch Regions 1 Pre-discovered Areas . | . . . Known Exits Taken . | . . . Unknown Exits Taken 2 | 1 1 . Scrap Searched . | . . . Spaces Dug 9 | . 9 . Terrain Destroyed 38 | . 9 29 Melee . | . . . Projectile . | . . . AOE 38 | . 9 29 Terrain Rammed . | . . . Walls Destroyed . | . . . Machines Disabled . | . . . Actions | -11 -10 -10 --------- Run | Yrd Mat Sub Total 1495 | . 892 603 Wait 63 | . 50 13 Move 1292 | . 760 532 Hop . | . . . Pick Up 20 | . 16 4 Fast Attach 8 | . 7 1 Attach 6 | . 1 5 Detach 3 | . 2 1 Swap 11 | . 5 6 Drop 15 | . 14 1 Fire 77 | . 37 40 Melee . | . . . Ram . | . . . Kick . | . . . Crush . | . . . Escape Stasis . | . . . Rewire . | . . . Trap . | . . . Miscellaneous . | . . . Route ------- -11/Scrapyard -10/Materials (discovered 6 exits: [*Mat x3] / [*Min x2] / [*Sub]) -10/Subcaves History --------- Turn | Location | Event 1 | -11/Scrapyard | Discovered new exit (range 0) 1 | -11/Scrapyard | Entered Materials 219 | -10/Materials | Discovered new exit (range 14) 301 | -10/Materials | Build established: Mutant 463 | -10/Materials | Discovered new exit (range 17) 732 | -10/Materials | Discovered new exit (range 7) 907 | -10/Materials | Discovered new exit (range 4) 1211 | -10/Materials | Discovered new exit (range 15) 1430 | -10/Materials | Discovered new exit (range 12) 1500 | -10/Materials | Entered Subcaves 2154 | -10/Subcaves | A swath of the cavern ceiling suddenly collapsed 2261 | -10/Subcaves | Core integrity fell below 50% 2277 | -10/Subcaves | Core integrity fell below 20% 2299 | -10/Subcaves | Lost 5 parts (2n2u1w) 2668 | -10/Subcaves | Shifting Twisted Machinery released Sub. Beam Cannon 2685 | -10/Subcaves | Shifting Twisted Machinery released Battle Rifle 2748 | -10/Subcaves | Shifting Twisted Machinery released Shrapnel Trap 2751 | -10/Subcaves | Shifting Twisted Machinery released Sub. Laser 2900 | -10/Subcaves | A Subdweller sparked back to life 2900 | -10/Subcaves | A Subdweller sparked back to life 2903 | -10/Subcaves | Destroyed by P4-KG0(R) with Subdweller Beam Cannon Last Messages --------------- 02380_ The unstable cave ceiling collapses. 02382_ Acquired 24 matter. 02432_ Acquired 4 matter. 02480_ Subatomizers dissect the Wheel. 02542_ Subatomizers dissect the Broken Sub. Laser. Sub. Beam Cannon falls loose from the Twisted Machinery. Battle Rifle falls loose from the Twisted Machinery. 02708_ Acquired Sub. Beam Cannon. Shrapnel Trap falls loose from the Twisted Machinery. Sub. Laser falls loose from the Twisted Machinery. 02753_ Acquired Shrapnel Trap. 02900_ ME-AMW(R) creaks and sparks as it begins to move. 02900_ P4-KG0(R) creaks and sparks as it begins to move. Map ----- +----------------------------------------------------+ | ??????????????????# #### #?????# ??? | | ??????????????????# #### ###?????# #?? | | ??????????????????# ### ##??????? ##?? | | ??????????????????#### ## ##??????? ##??? | | ?????????????????????# #??????? ###???? | | ?????????????????????# ### #????????## ##?????? | | ?????????????????????# #?# #?????????##???????? | | ?????????????????????# #?###??????????????????? | | ????????????????????## #??????????????????????? | | ???????????????????## #??????????????????????? | | ??????????????????## #??????????????????????? | | ??????????????????# #??????????????????????? | | ??????????????????## #??????????????????????? | | ???????????????????# #??????????????????????? | | ???????????????????## #??????????????????????? | | ????????????????????## ##?????????????????????? | | ?????????????????????### #?????????????????????? | | ???????????????????????# #?????????????????????? | | ???????????????????????# ##????????????????????? | | ???????????????????????# #####????????????????? | | ???????????####???????## #????????????????? | | ??????????## #####???# #????????????????? | | ??????????# # ##"##### #????????????????? | | ####?????## # """"## """ #????????????????? | | # ####### # """" ## #????????????????? | | # # # #[ ""## @## ##????????????????? | | ?# """ "### # " #???????????????? | | ?# # # # #"" "##"""#"""R R &"#???????????????? | | ## ######## """#"""""## R #???????????????? | | # """#"#?# # """ ### < #???????????????? | | # """"" """ ### """"" ##? " #???????????????? | | """"## "# #?## "#####?? ###???????????????? | | """#########???###?????? #?????????????????? | | ["""#??????????????????? ## ##?????????????????? | | # ##?????????????????? ??##??????????????????? | | # #?????????????????# ??????????????????????? | | ## "#?????????????????# ??????????????????????? | | ?### "##?????????????????# ??????????????????????? | | ???## "##????????????????#???????????????????????? | | ????## ##???????????????????????????????????????? | | ?????## #???????????????????????????????????????? | | ??????## #???????????????????????????????????????? | | ???????###???????????????????????????????????????? | | ?????????????????????????????????????????????????? | | ?????????????????????????????????????????????????? | | ?????????????????????????????????????????????????? | | ?????????????????????????????????????????????????? | | ?????????????????????????????????????????????????? | | ?????????????????????????????????????????????????? | | ?????????????????????????????????????????????????? | +----------------------------------------------------+ Best States ------------- Heat Dissipation 25 Energy Generation 14 Energy Capacity 265 Matter Stores 300 Matter Capacity 300 Sight Range 16 Terrain Scan Density 10 Armor Coverage 225 Evasion (%) 55 Recoil Reduction 2 Item Schematics ----------------- None Robot Schematics ------------------ None Fabricated ------------ Nothing Alien Tech Used ----------------- None Achievements -------------- None Challenges ------------ None Game ------ Seed LegZhirovDevice Manual? 0 Play Time 00:21:23 Cumulative 82.4 hours Start 2024.08.07 @ 16:57:32 End 2024.08.07 @ 17:15:49 Sessions 1 Manual Loads 0 Difficulty Rogue Special Mode None Game No. 56 Rogue 53 Adventurer 0 Explorer 3 Win Type - Total 1 Types 1/0/0/0/0/0/0/0/0 Lore% 26 Gallery% 35 Achievement% 40 Wizard Run 0 Options --------- Layout 1 ASCII 0 Keyboard 1 Movement Numpad Keybinds 1 Fullscreen 1 Font 24/Smallcaps Map View 50x35 Zoom Use 0% Tactical HUD 1 Map Filters NONE Filters NONE Steam 1 RUN: 41f32c70-b01c-4930-8eaf-4b7fd02f307e